bitfinex/quotes_BTCUSD_20220303
["timestamp","ask_amount","ask_price","bid_price","bid_amount"]
[1646279222415,0.44845569,43331.0,43330.0,0.06107603]
[1646279222616,0.44845569,43331.0,43330.0,0.51172983]
[1646279222819,0.01,43339.0,43330.0,0.51172983]
[1646279222820,0.01,43339.0,43331.0,0.97244]
[1646279223022,0.00354,43351.0,43332.0,0.33332948]
[1646279223318,0.01450615,43367.0,43332.0,0.33332948]
[1646279223319,0.2,43352.0,43339.0,0.10275]
[1646279223519,0.2,43352.0,43346.0,0.14440502]
[1646279223717,0.02794831,43380.0,43348.0,0.27446315]
[1646279223718,0.05,43361.0,43348.0,0.27446315]
[1646279223920,0.00559498,43374.0,43349.0,0.0423]
[1646279224116,0.02404808,43370.0,43354.0,0.05468002]
[1646279224316,0.02404808,43370.0,43355.0,0.3]
[1646279224516,0.02404808,43370.0,43358.0,0.19902273]
[1646279224716,0.01731482,43365.0,43351.0,0.0423]
[1646279224919,0.10263301,43365.0,43351.0,0.0423]
[1646279225356,0.10263301,43356.0,43351.0,0.0423]
[1646279225566,0.00424072,43364.0,43352.0,0.51556798]
[1646279225757,0.00424072,43364.0,43353.0,0.22623444]
[1646279225959,0.10263301,43363.0,43353.0,0.22623444]
[1646279226155,0.00011022,43360.0,43353.0,0.22623444]
[1646279226357,0.00011022,43360.0,43354.0,0.3]
[1646279226558,0.10263301,43359.0,43350.0,0.0423]
[1646279226771,0.10687373,43359.0,43350.0,0.0423]
[1646279227358,0.10687373,43359.0,43351.0,0.58504768]
[1646279227560,0.00014851,43357.0,43353.0,0.16442428]
[1646279227760,0.00014851,43357.0,43355.0,0.20215312]
[1646279227761,8.51e-06,43357.0,43355.0,0.20215312]
[1646279227959,8.51e-06,43357.0,43356.0,0.3]
[1646279228166,8.51e-06,43357.0,43356.0,0.38371]
[1646279228365,0.05,43367.0,43356.0,0.38371]
[1646279228366,0.05,43367.0,43356.0,0.72337699]
[1646279228560,0.01,43369.0,43368.0,0.0613842]
[1646279228761,0.0001,43369.0,43368.0,0.4036842]
[1646279229031,0.031139,43376.0,43368.0,0.0423]
[1646279229032,0.13377201,43376.0,43368.0,0.0423]
[1646279229235,0.13377201,43376.0,43367.0,0.0939]
[1646279229433,0.10263301,43375.0,43367.0,0.05926]
[1646279229630,0.00692633,43371.0,43356.0,0.004]
[1646279229830,0.00692593,43367.0,43356.0,0.004]
[1646279230030,0.00692529,43363.0,43356.0,0.004]
[1646279230237,0.00426874,43374.0,43336.0,0.51116699]
[1646279230238,0.00397271,43355.0,43336.0,0.51116699]
[1646279230431,0.00397271,43355.0,43336.0,0.04736699]
[1646279231031,0.00397271,43355.0,43336.0,0.005]
[1646279231032,0.10660572,43355.0,43336.0,0.005]
[1646279231432,0.10660572,43355.0,43346.0,0.21550774]
[1646279231833,0.00397271,43355.0,43346.0,0.21550774]
[1646279232334,0.00397271,43355.0,43347.0,0.19622189]
[1646279232536,0.00014867,43359.0,43350.0,0.04736699]
[1646279232762,0.05,43370.0,43354.0,0.25129534]
[1646279233463,0.05,43370.0,43364.0,0.20802733]
[1646279233659,0.12763301,43378.0,43364.0,0.20802733]
[1646279233859,0.10263301,43377.0,43363.0,0.03497]
[1646279234063,0.10263301,43372.0,43363.0,0.03497]
[1646279234659,0.41044956,43353.0,43349.0,0.3]
[1646279234859,0.15263301,43364.0,43345.0,0.21174411]
[1646279235062,0.10263301,43361.0,43345.0,0.21174411]
[1646279235361,0.05426054,43364.0,43345.0,0.003]
[1646279235562,0.10263301,43361.0,43345.0,0.003]
[1646279235761,0.10263301,43357.0,43345.0,0.003]
[1646279235968,0.10263301,43349.0,43345.0,0.003]
[1646279236261,0.057736,43354.0,43345.0,0.003]
[1646279236262,0.10263301,43350.0,43345.0,0.003]
[1646279236510,0.10263301,43350.0,43339.0,0.23281137]
[1646279236511,0.00426054,43356.0,43339.0,0.23281137]
[1646279236710,0.10263301,43359.0,43339.0,0.23281137]
[1646279237010,0.10263301,43353.0,43339.0,0.23281137]
[1646279237211,0.10263301,43353.0,43339.0,0.23396829]
[1646279237411,0.10263301,43353.0,43341.0,0.20916116]
[1646279237615,0.059725,43361.0,43339.0,0.00115692]
[1646279237616,0.10263301,43346.0,43339.0,0.00115692]
[1646279237814,0.10689355,43352.0,43339.0,0.00115692]
[1646279238214,0.10689355,43352.0,43339.0,0.001]
[1646279238415,0.10689355,43352.0,43341.0,0.15788352]
[1646279238616,0.10689355,43352.0,43343.0,0.43955325]
[1646279238912,0.45716376,43342.0,43339.0,0.001]
[1646279239715,0.45716376,43342.0,43339.0,0.27761921]
[1646279239914,0.45716376,43342.0,43339.0,0.35883253]
[1646279240155,0.45716376,43342.0,43339.0,0.20195212]
[1646279240760,0.10763301,43352.0,43340.0,1.60194731]
[1646279240761,0.005,43352.0,43340.0,1.60194731]
[1646279240961,0.005,43352.0,43350.0,0.23389384]
[1646279241660,0.005,43352.0,43350.0,0.02286]
[1646279241661,0.0001,43352.0,43350.0,0.02286]
[1646279241861,0.002,43361.0,43352.0,0.95]
[1646279242062,0.00214923,43361.0,43353.0,0.02286]
[1646279242261,0.05,43364.0,43354.0,0.45]
[1646279242262,0.04714923,43364.0,43354.0,0.45]
[1646279242460,0.10689355,43369.0,43354.0,0.47286]
[1646279242461,0.10263301,43369.0,43354.0,0.47286]
[1646279242661,0.075,43374.0,43354.0,0.47286]
[1646279242662,0.10263301,43370.0,43354.0,0.47286]
[1646279243060,0.10263301,43370.0,43354.0,0.45]
[1646279243061,0.16033801,43370.0,43354.0,0.45]
[1646279243261,0.057705,43370.0,43354.0,0.45]
[1646279243461,0.02286,43368.0,43353.0,0.02356]
[1646279243668,0.3,43369.0,43341.0,0.239]
[1646279243669,0.10263301,43354.0,43341.0,0.239]
[1646279243920,0.15,43360.0,43337.0,0.3032]
[1646279243921,0.10263301,43348.0,43337.0,0.3]
[1646279244120,0.10263301,43353.0,43329.0,0.488]
[1646279244320,0.1808452,43355.0,43341.0,0.18948351]
[1646279244321,0.057736,43351.0,43341.0,0.18948351]
[1646279244522,0.037736,43351.0,43344.0,0.18556878]
[1646279244722,0.37064257,43340.0,43329.0,0.7358571]
[1646279244922,0.37064257,43340.0,43329.0,0.60037542]
[1646279245122,0.37064257,43340.0,43339.0,0.002]
[1646279245324,0.37064257,43340.0,43339.0,0.17007387]
[1646279246022,0.37064257,43340.0,43339.0,0.25987098]
[1646279246422,0.37064257,43340.0,43339.0,0.55987098]
[1646279246822,0.37064257,43340.0,43339.0,0.25987098]
[1646279247023,0.37064257,43340.0,43339.0,0.55787098]
[1646279247223,0.37264257,43340.0,43339.0,0.77390818]
[1646279247661,0.37264257,43340.0,43339.0,0.98014415]
[1646279248255,0.36764257,43340.0,43339.0,0.98014415]
[1646279248455,0.36564257,43340.0,43339.0,0.98014415]
[1646279248858,0.05,43349.0,43340.0,0.96153]
[1646279249057,0.05,43349.0,43347.0,0.05368646]
[1646279249261,0.05,43361.0,43357.0,0.07149445]
[1646279249458,0.00014929,43363.0,43356.0,0.0287]
[1646279249657,0.00014929,43363.0,43357.0,0.06577]
[1646279249857,0.00014929,43363.0,43353.0,0.1924804]
[1646279250257,0.057706,43367.0,43353.0,0.1924804]
[1646279250457,0.057706,43367.0,43353.0,0.1874804]
[1646279250859,0.15,43365.0,43350.0,0.05468236]
[1646279251057,0.3,43370.0,43350.0,0.05468236]
[1646279251058,0.15,43364.0,43352.0,0.19514265]
[1646279251258,0.057712,43362.0,43352.0,0.19514265]
[1646279251527,0.18530854,43364.0,43357.0,0.070553]
[1646279251719,0.18530854,43366.0,43357.0,0.070553]
[1646279251920,0.18530854,43366.0,43364.0,0.06704852]
[1646279252120,0.18530854,43366.0,43361.0,0.18746136]
[1646279252321,0.18730854,43367.0,43361.0,0.18746136]
[1646279252620,0.18530854,43366.0,43365.0,0.27814668]
[1646279253220,0.18530854,43366.0,43358.0,0.23117382]
[1646279253422,0.18530854,43365.0,43351.0,0.0388]
[1646279253621,0.23363567,43367.0,43351.0,0.0388]
[1646279253622,0.18530854,43364.0,43351.0,0.0388]
[1646279254125,0.18545829,43364.0,43351.0,0.0388]
[1646279254324,0.00014975,43364.0,43357.0,0.17390895]
[1646279254724,0.19378237,43352.0,43347.0,0.00013092]
[1646279254922,0.19378237,43352.0,43349.0,0.35509]
[1646279255163,0.19378237,43352.0,43347.0,0.00010146]
[1646279255362,0.19378237,43352.0,43349.0,0.58714583]
[1646279255560,0.19378237,43352.0,43349.0,0.23205583]
[1646279256262,0.19378237,43352.0,43350.0,0.35331345]
[1646279256665,0.19378237,43352.0,43351.0,0.37795]
[1646279256961,0.19378237,43352.0,43351.0,0.56632294]
[1646279258918,0.23163567,43361.0,43351.0,0.56632294]
[1646279258919,0.18530854,43361.0,43351.0,0.90512294]
[1646279259315,0.18530854,43361.0,43360.0,0.62542197]
[1646279259516,0.18544943,43363.0,43360.0,0.92542197]
[1646279259714,0.057697,43372.0,43362.0,0.02286]
[1646279259715,8.54e-06,43364.0,43362.0,0.02286]
[1646279259915,0.057697,43372.0,43362.0,0.01663515]
[1646279259916,0.23163567,43370.0,43362.0,0.01663515]
[1646279260114,0.23163567,43372.0,43364.0,0.01679511]
[1646279260316,0.18163567,43372.0,43370.0,0.05406087]
[1646279260513,0.15,43381.0,43371.0,0.95]
[1646279260514,0.30910181,43376.0,43371.0,0.95]
[1646279260715,0.031139,43376.0,43375.0,0.23527733]
[1646279260915,0.42819263,43374.0,43371.0,0.0388]
[1646279261114,0.42819263,43374.0,43372.0,0.02286]
[1646279261315,0.42819263,43374.0,43371.0,0.0388]
[1646279261919,0.42819263,43374.0,43371.0,0.32688187]
[1646279262115,0.42819263,43374.0,43371.0,0.0388]
[1646279263981,0.42819263,43374.0,43366.0,0.001]
[1646279263982,0.506221,43373.0,43366.0,0.001]
[1646279264175,0.15,43367.0,43366.0,0.001]
[1646279264374,0.18932633,43372.0,43366.0,0.357221]
[1646279264375,0.27796281,43372.0,43366.0,0.357221]
[1646279264578,0.27796281,43372.0,43347.0,0.26080518]
[1646279264579,0.27796281,43372.0,43367.0,0.29985494]
[1646279264776,0.75248257,43374.0,43353.0,0.0138145]
[1646279264777,0.44143055,43365.0,43353.0,0.0138145]
[1646279264976,0.44143055,43365.0,43364.0,0.71946]
[1646279265276,0.34143055,43365.0,43364.0,1.2865585]
[1646279265677,0.00015112,43369.0,43366.0,0.02286]
[1646279265877,0.42819263,43374.0,43365.0,0.96657326]
[1646279265878,0.42819263,43374.0,43370.0,0.02286]
[1646279266077,0.42819263,43374.0,43372.0,0.02286]
[1646279266273,0.42819263,43374.0,43373.0,0.22619363]
[1646279266525,0.42819263,43374.0,43373.0,0.81676989]
[1646279266723,9e-06,43376.0,43375.0,0.379081]
[1646279266925,9e-06,43376.0,43375.0,0.417881]
[1646279267324,0.00016011,43376.0,43375.0,0.417881]
[1646279267523,0.00016011,43376.0,43375.0,0.557881]
[1646279267726,0.00016011,43376.0,43375.0,0.77354499]
[1646279267924,0.00016011,43376.0,43375.0,0.63354499]
[1646279268126,9e-06,43376.0,43375.0,0.63354499]
[1646279268425,9e-06,43376.0,43375.0,0.417881]
[1646279268828,9e-06,43376.0,43375.0,0.0388]
[1646279269026,9e-06,43376.0,43368.0,0.003]
[1646279269229,0.356221,43369.0,43368.0,0.003]
[1646279269624,0.15,43370.0,43368.0,0.003]
[1646279269830,0.656221,43369.0,43368.0,0.003]
[1646279270026,1.00840733,43369.0,43368.0,0.003]
[1646279270260,0.00136188,43367.0,43347.0,0.00010356]
[1646279270465,0.15,43358.0,43347.0,0.00010356]
[1646279270660,0.15,43358.0,43343.0,0.356221]
[1646279270866,0.15,43358.0,43354.0,0.25043753]
[1646279271360,0.15,43362.0,43354.0,0.25043753]
[1646279271961,0.356221,43361.0,43347.0,0.00010821]
[1646279272163,0.00014413,43363.0,43362.0,0.20625402]
[1646279272368,0.32796281,43373.0,43362.0,0.20625402]
[1646279272369,0.05,43373.0,43363.0,2.002961]
[1646279272565,0.025,43380.0,43363.0,2.002961]
[1646279272566,0.87061708,43394.0,43373.0,0.356221]
[1646279272768,0.18742853,43384.0,43377.0,0.02286]
[1646279272964,0.18742853,43383.0,43378.0,0.0388]
[1646279273463,0.18742853,43383.0,43369.0,0.19380508]
[1646279273464,0.18742853,43380.0,43369.0,0.19380508]
[1646279273661,0.18742853,43379.0,43369.0,0.19380508]
[1646279273908,0.18742853,43379.0,43368.0,0.002]
[1646279273909,0.02286,43375.0,43368.0,0.002]
[1646279274112,0.02286,43370.0,43368.0,0.002]
[1646279274312,0.97286,43368.0,43344.0,0.4969]
[1646279274516,0.02286,43363.0,43341.0,0.2499]
[1646279274710,0.21218633,43358.0,43341.0,0.2499]
[1646279274913,0.057728,43353.0,43338.0,0.79437108]
[1646279275110,0.057728,43353.0,43338.0,0.30587108]
[1646279275410,0.057728,43353.0,43338.0,0.0999]
[1646279275411,0.86840733,43352.0,43338.0,0.0999]
[1646279275611,0.679081,43352.0,43338.0,0.0999]
[1646279275811,0.02286,43349.0,43343.0,0.00013247]
[1646279276009,0.02286,43347.0,43343.0,0.00013247]
[1646279276212,0.356221,43346.0,43344.0,0.17828804]
[1646279276412,0.356221,43346.0,43343.0,0.00013247]
[1646279276611,0.025,43352.0,43343.0,0.00013247]
[1646279276811,0.356221,43351.0,43336.0,0.003]
[1646279277012,0.356221,43351.0,43342.0,0.00013247]
[1646279277211,0.356221,43351.0,43342.0,0.15794503]
[1646279277414,0.356221,43350.0,43342.0,0.00013247]
[1646279277688,0.19232633,43352.0,43342.0,0.00013247]
[1646279277875,0.356221,43351.0,43338.0,0.001]
[1646279278075,0.003,43352.0,43341.0,0.28385527]
[1646279278275,0.356221,43348.0,43341.0,0.28385527]
[1646279278476,0.19232633,43352.0,43347.0,0.19677018]
[1646279278678,0.356221,43351.0,43347.0,0.19677018]
[1646279278877,0.19232633,43352.0,43347.0,0.19677018]
[1646279279077,0.356221,43351.0,43347.0,0.19677018]
[1646279279277,0.35633433,43351.0,43341.0,0.28385527]
[1646279279479,0.00011333,43351.0,43341.0,0.28385527]
[1646279279677,0.00011333,43351.0,43343.0,0.19568968]
[1646279279877,0.00011333,43351.0,43332.0,0.05771643]
[1646279280081,0.00011333,43351.0,43334.0,0.05286772]
[1646279280278,0.025,43354.0,43337.0,0.6966]
[1646279280479,0.28428566,43359.0,43343.0,0.02286]
[1646279280480,0.18732072,43358.0,43343.0,0.02286]
[1646279280682,0.00015108,43344.0,43343.0,1.01767106]
[1646279280880,0.00015108,43344.0,43343.0,1.28048818]
[1646279281079,0.00015108,43344.0,43343.0,0.75432402]
[1646279281280,0.00015108,43344.0,43343.0,1.09812402]
[1646279281524,0.05,43359.0,43343.0,1.09812402]
[1646279281824,0.057714,43359.0,43344.0,0.367751]
[1646279282424,0.115429,43363.0,43344.0,0.367751]
[1646279282627,0.18932633,43363.0,43345.0,0.356221]
[1646279282826,0.18732072,43364.0,43346.0,1.05826]
[1646279283023,0.00015107,43356.0,43346.0,1.05826]
[1646279283225,0.00015107,43356.0,43347.0,0.02286]
[1646279283424,0.00015107,43356.0,43348.0,0.356221]
[1646279283626,0.00015107,43356.0,43350.0,1.11053874]
[1646279283827,0.00015107,43356.0,43352.0,0.02286]
[1646279284126,0.00015107,43355.0,43346.0,0.0388]
[1646279284325,0.00015107,43355.0,43347.0,0.356257]
[1646279284726,0.00015107,43355.0,43349.0,0.356257]
[1646279285162,0.18932633,43363.0,43352.0,0.356257]
[1646279285360,0.00014692,43354.0,43353.0,0.3]
[1646279285560,0.00014692,43354.0,43353.0,0.656257]
[1646279286361,0.23428566,43366.0,43353.0,0.656257]
[1646279286362,0.18732072,43366.0,43353.0,0.76842229]
[1646279286560,0.00014692,43356.0,43354.0,0.356257]
[1646279286761,0.00014692,43356.0,43355.0,1.0354]
[1646279286963,0.00014692,43356.0,43355.0,1.45769949]
[1646279287560,0.05,43369.0,43355.0,0.97410662]
[1646279287763,0.18732072,43370.0,43365.0,0.07471728]
[1646279287965,0.23428566,43373.0,43366.0,0.717917]
[1646279287966,0.18732072,43373.0,43366.0,0.717917]
[1646279288162,0.3311614,43378.0,43366.0,0.717917]
[1646279288163,0.23732072,43378.0,43366.0,0.717917]
[1646279288362,0.23428566,43384.0,43373.0,0.02286]
[1646279288562,0.15359965,43385.0,43374.0,0.395057]
[1646279288918,0.23428566,43386.0,43381.0,0.23058249]
[1646279289115,0.67092591,43391.0,43378.0,0.356257]
[1646279289116,0.15456093,43380.0,43378.0,0.356257]
[1646279289317,0.15456093,43380.0,43379.0,0.2048693]
[1646279289512,0.15456093,43380.0,43379.0,0.8611263]
[1646279289713,0.15456093,43380.0,43379.0,0.693457]
[1646279290013,0.15456093,43380.0,43379.0,0.90912374]
[1646279290614,0.15456093,43380.0,43379.0,1.08403574]
[1646279290815,0.15456093,43380.0,43379.0,0.78286674]
[1646279291012,0.15456093,43380.0,43379.0,0.48286674]
[1646279291213,0.15456093,43380.0,43379.0,0.83912374]
[1646279291415,0.15456093,43380.0,43379.0,1.13912374]
[1646279291615,0.15456093,43380.0,43379.0,0.48286674]
[1646279292015,0.15456093,43380.0,43379.0,0.2672]
[1646279292415,0.51081793,43380.0,43379.0,0.2672]
[1646279292858,0.15456093,43380.0,43379.0,0.44179606]
[1646279293064,0.15456093,43380.0,43379.0,0.6883927]
[1646279293457,0.15456093,43380.0,43379.0,0.51379664]
[1646279294056,0.15456093,43380.0,43379.0,0.87005364]
[1646279294258,0.15456093,43380.0,43379.0,1.17005364]
[1646279294463,0.15456093,43380.0,43379.0,1.35510699]
[1646279294659,0.15456093,43380.0,43379.0,1.4143076]
[1646279294857,0.23428566,43390.0,43379.0,2.1337676]
[1646279295059,0.23428566,43392.0,43380.0,1.133371]
[1646279295258,0.23428566,43392.0,43382.0,0.71946]
[1646279295457,0.23428566,43393.0,43384.0,0.01294176]
[1646279295659,0.01,43399.0,43385.0,0.395057]
[1646279295660,0.23428566,43394.0,43385.0,0.395057]
[1646279295858,0.23428566,43394.0,43387.0,0.19761027]
[1646279296058,0.23428566,43394.0,43388.0,0.395057]
[1646279296258,0.2811614,43397.0,43393.0,0.26860018]
[1646279296259,0.23428566,43395.0,43393.0,0.26860018]
[1646279296521,0.2811614,43397.0,43390.0,0.356257]
[1646279296522,0.23428566,43394.0,43390.0,0.356257]
[1646279296920,0.23428566,43396.0,43391.0,0.0388]
[1646279297521,0.23442974,43396.0,43391.0,0.0388]
[1646279297722,0.23428566,43395.0,43391.0,0.0388]
[1646279297923,0.23428566,43394.0,43391.0,0.0388]
[1646279298123,0.23428566,43392.0,43391.0,0.0388]
[1646279298524,0.23428566,43392.0,43391.0,0.00872461]
[1646279298924,0.42361199,43392.0,43391.0,0.00872461]
[1646279299125,0.42361199,43392.0,43391.0,0.00266105]
[1646279299326,0.23428566,43392.0,43391.0,0.00266105]
[1646279299927,0.18741616,43392.0,43391.0,0.00266105]
[1646279300182,0.18741616,43393.0,43391.0,0.35891805]
[1646279300379,0.00014412,43394.0,43391.0,0.35891805]
[1646279300380,0.18756028,43394.0,43391.0,0.00266105]
[1646279300782,0.18741616,43393.0,43391.0,0.18405014]
[1646279300984,0.18741616,43393.0,43392.0,0.398657]
[1646279301280,0.18741616,43393.0,43392.0,0.0424]
[1646279301481,0.18741616,43394.0,43392.0,0.398657]
[1646279301681,0.18741616,43394.0,43392.0,0.0424]
[1646279301887,0.00014412,43395.0,43393.0,0.656257]
[1646279301888,0.18756028,43395.0,43393.0,0.656257]
[1646279302083,0.43473155,43398.0,43394.0,0.3424]
[1646279302084,0.18741616,43396.0,43394.0,0.3424]
[1646279302283,0.18741616,43397.0,43395.0,0.0424]
[1646279302482,0.18741616,43396.0,43391.0,0.53]
[1646279302683,0.18741616,43396.0,43392.0,0.0424]
[1646279302882,0.18741616,43396.0,43393.0,0.1975811]
[1646279303187,0.18741616,43396.0,43395.0,0.001]
[1646279303383,0.24428566,43399.0,43395.0,0.3434]
[1646279303384,0.18741616,43397.0,43395.0,0.3434]
[1646279303588,0.18741616,43397.0,43396.0,0.3]
[1646279303589,0.0001135,43397.0,43396.0,0.3]
[1646279303782,0.18752966,43397.0,43396.0,0.0424]
[1646279304024,0.18752966,43397.0,43391.0,0.13121213]
[1646279304330,0.18752966,43397.0,43395.0,0.20238473]
[1646279304525,0.18741616,43397.0,43396.0,0.0424]
[1646279304723,0.18741616,43398.0,43396.0,0.0424]
[1646279305123,0.18741616,43398.0,43396.0,0.0434]
[1646279305526,0.18741616,43398.0,43397.0,0.21714498]
[1646279305728,0.01,43399.0,43397.0,0.61580198]
[1646279305926,0.01,43399.0,43397.0,0.77575403]
[1646279306130,0.0101135,43399.0,43397.0,0.77575403]
[1646279306327,0.00045393,43407.0,43398.0,1.94541841]
[1646279306528,0.00045393,43407.0,43405.0,0.24735098]
[1646279306726,0.00045393,43407.0,43406.0,0.0424]
[1646279306929,0.03370169,43405.0,43399.0,0.01235291]
[1646279307127,0.03370169,43405.0,43400.0,0.0424]
[1646279307663,0.03370169,43405.0,43401.0,0.26311135]
[1646279307861,0.03370169,43405.0,43402.0,0.0424]
[1646279308464,0.03370169,43405.0,43403.0,0.56637465]
[1646279308667,0.03370169,43405.0,43404.0,0.698657]
[1646279308864,0.03370169,43405.0,43404.0,0.88496344]
[1646279309067,0.1811974,43409.0,43405.0,0.65]
[1646279309265,0.38828092,43412.0,43405.0,0.65]
[1646279309266,0.00045324,43412.0,43406.0,0.355965]
[1646279309465,0.23425753,43415.0,43407.0,0.0424]
[1646279309667,0.47048773,43418.0,43405.0,0.65]
[1646279309668,0.23425753,43416.0,43408.0,0.0424]
[1646279309866,0.23425753,43416.0,43409.0,0.0424]
[1646279310067,0.42358386,43418.0,43415.0,0.27186554]
[1646279310265,0.23425753,43418.0,43416.0,0.0424]
[1646279310467,0.23425753,43417.0,43416.0,0.0424]
[1646279310672,0.378825,43417.0,43416.0,0.0424]
[1646279310867,0.378825,43417.0,43400.0,0.0115]
[1646279310868,0.18932633,43409.0,43408.0,0.0424]
[1646279311171,0.02286,43409.0,43400.0,0.0115]
[1646279311443,0.23415366,43410.0,43398.0,0.00307203]
[1646279311444,0.18932633,43404.0,43398.0,0.00307203]
[1646279311734,0.02286,43403.0,43398.0,0.00307203]
[1646279311940,0.53415366,43407.0,43398.0,0.00307203]
[1646279311941,0.02286,43399.0,43398.0,0.00307203]
[1646279312137,0.21218633,43399.0,43398.0,0.00307203]
[1646279312634,0.51218633,43399.0,43398.0,0.00307203]
[1646279312833,0.51218633,43399.0,43382.0,0.18316507]
[1646279312834,0.18932633,43391.0,43382.0,0.18316507]
[1646279313936,0.18432633,43391.0,43377.0,0.355965]
[1646279314136,0.18432633,43391.0,43381.0,0.28846448]
[1646279315039,0.18432633,43391.0,43382.0,0.20377207]
[1646279315262,0.02286,43389.0,43381.0,0.003]
[1646279315464,0.23815366,43399.0,43381.0,0.003]
[1646279315468,0.18432633,43382.0,43381.0,0.003]
[1646279315661,0.56315133,43382.0,43381.0,0.003]
[1646279315861,0.56315133,43382.0,43373.0,0.01152]
[1646279316061,0.355965,43381.0,43373.0,0.01152]
[1646279316263,0.20718633,43382.0,43379.0,0.46829696]
[1646279316461,0.20718633,43382.0,43380.0,0.18934928]
[1646279316661,0.02286,43382.0,43380.0,0.18934928]
[1646279317061,0.02286,43382.0,43379.0,0.20495628]
[1646279317361,0.02286,43382.0,43380.0,0.001]
[1646279317761,0.355965,43385.0,43379.0,0.43787576]
[1646279317963,0.325,43391.0,43383.0,0.17970065]
[1646279317964,0.20932633,43391.0,43383.0,0.17970065]
[1646279318163,0.18432633,43391.0,43383.0,0.17970065]
[1646279318917,0.20718633,43391.0,43388.0,0.23909581]
[1646279319115,0.20718633,43391.0,43386.0,0.15831843]
[1646279319516,0.23415366,43399.0,43386.0,0.15831843]
[1646279319817,0.28098439,43401.0,43388.0,0.356036]
[1646279319818,0.02286,43400.0,43388.0,0.356036]
[1646279320014,0.02286,43400.0,43389.0,0.0424]
[1646279320215,0.20718633,43400.0,43390.0,0.0424]
[1646279320819,0.44133999,43400.0,43390.0,0.0424]
[1646279321015,0.02286,43398.0,43386.0,0.15831843]
[1646279321216,0.02286,43396.0,43386.0,0.15831843]
[1646279321420,0.02286,43392.0,43385.0,0.001]
[1646279321817,0.02286,43392.0,43385.0,0.27761753]
[1646279322416,0.02286,43392.0,43388.0,0.20420573]
[1646279322676,0.24199633,43393.0,43383.0,0.0424]
[1646279322677,0.18432633,43393.0,43383.0,0.0424]
[1646279323273,0.18432633,43393.0,43388.0,0.001]
[1646279323671,0.20718633,43393.0,43388.0,0.001]
[1646279323875,0.02286,43389.0,43388.0,0.001]
[1646279324074,0.02286,43389.0,43383.0,0.11681925]
[1646279324571,0.02286,43389.0,43382.0,0.43762678]
[1646279324770,0.18432633,43393.0,43384.0,0.21527236]
[1646279324771,0.02286,43392.0,43384.0,0.21527236]
[1646279326616,0.08053,43392.0,43384.0,0.21527236]
[1646279326814,0.08053,43392.0,43382.0,0.22134039]
[1646279327015,0.02286,43390.0,43374.0,0.3]
[1646279327219,0.02286,43384.0,43379.0,0.001]
[1646279327416,0.356036,43383.0,43379.0,0.001]
[1646279328116,0.02286,43384.0,43379.0,0.001]
[1646279328314,0.356036,43383.0,43379.0,0.001]
[1646279328515,0.356036,43383.0,43376.0,0.21771537]
[1646279328715,0.02286,43384.0,43373.0,0.01152]
[1646279328915,0.18432633,43386.0,43373.0,0.01152]
[1646279329119,0.02286,43385.0,43373.0,0.01152]
[1646279329316,0.004,43383.0,43373.0,0.01152]
[1646279329716,0.004,43383.0,43379.0,0.22958133]
[1646279329917,0.004,43383.0,43380.0,0.16946114]
[1646279330177,0.004,43383.0,43373.0,0.01152]
[1646279330178,0.356036,43381.0,43373.0,0.01152]
[1646279330378,0.004,43383.0,43373.0,0.01152]
[1646279330577,0.004,43383.0,43368.0,0.1153432]
[1646279330578,0.356036,43382.0,43368.0,0.057674]
[1646279330780,0.356036,43382.0,43365.0,0.31575928]
[1646279330781,0.18432633,43381.0,43365.0,0.31575928]
[1646279331077,0.18432633,43381.0,43373.0,0.1564021]
[1646279331078,0.46531072,43381.0,43373.0,0.1564021]
[1646279331279,0.356036,43380.0,43375.0,0.16303993]
[1646279331683,0.28098439,43382.0,43376.0,0.3]
[1646279331879,0.32799993,43383.0,43375.0,0.16303993]
[1646279331880,0.28098439,43383.0,43375.0,0.16303993]
[1646279332079,0.02286,43381.0,43365.0,0.01575928]
[1646279332281,0.02286,43377.0,43365.0,0.01575928]
[1646279332678,0.18432633,43374.0,43370.0,0.17846583]
[1646279332900,0.02286,43377.0,43370.0,0.17846583]
[1646279333084,0.02286,43377.0,43371.0,0.17745927]
[1646279333281,0.02286,43377.0,43372.0,0.28005497]
[1646279333482,0.28098439,43379.0,43372.0,0.28005497]
[1646279333680,0.02286,43381.0,43372.0,0.28005497]
[1646279333681,0.28098439,43380.0,43372.0,0.28005497]
[1646279333945,0.356036,43379.0,43378.0,0.20608043]
[1646279334147,0.02286,43378.0,43371.0,0.23]
[1646279334355,0.356036,43373.0,43371.0,0.23]
[1646279334552,0.656036,43372.0,43371.0,0.23]
[1646279334746,1.05988039,43372.0,43371.0,0.23]
[1646279334946,0.478896,43372.0,43371.0,0.23]
[1646279335147,0.478896,43372.0,43358.0,0.00152091]
[1646279335148,0.356036,43360.0,43358.0,0.00152091]
[1646279335351,0.16286,43359.0,43358.0,0.00152091]
[1646279335550,0.87311471,43359.0,43358.0,0.00152091]
[1646279336252,0.02286,43357.0,43352.0,0.0011]
[1646279336451,0.20718633,43349.0,43337.0,0.101]
[1646279336652,0.378896,43348.0,43337.0,0.101]
[1646279336852,0.378896,43348.0,43337.0,0.0011]
[1646279336853,0.478896,43348.0,43337.0,0.0011]
[1646279337054,0.4424,43353.0,43337.0,0.0011]
[1646279337055,0.23377981,43353.0,43348.0,0.356233]
[1646279337252,0.05,43364.0,43350.0,0.55007776]
[1646279337253,0.076916,43362.0,43350.0,0.55007776]
[1646279337451,0.39856193,43370.0,43362.0,0.19377612]
[1646279337667,0.39856193,43370.0,43353.0,0.02286]
[1646279337668,0.11782824,43370.0,43353.0,0.02286]
[1646279337870,0.11782824,43370.0,43357.0,0.01573802]
[1646279338070,0.11782824,43370.0,43369.0,0.19755321]
[1646279338669,0.11782824,43370.0,43369.0,0.4315236]
[1646279338872,0.11782824,43370.0,43362.0,0.0424]
[1646279339072,0.11782824,43370.0,43358.0,0.00041511]
[1646279339073,0.379093,43369.0,43358.0,0.00041511]
[1646279339270,0.11782824,43370.0,43360.0,0.356233]
[1646279339271,0.11882824,43370.0,43360.0,0.356233]
[1646279339669,0.11882824,43370.0,43365.0,0.06501947]
[1646279339872,0.11882824,43370.0,43368.0,0.20757346]
[1646279340086,0.05,43377.0,43369.0,1.25]